bitfinex/quotes_BTCUSD_20251113
["timestamp","ask_amount","ask_price","bid_price","bid_amount"]
[1763030033723,0.52180665,103010.0,103000.0,0.07254]
[1763030034100,0.22329771,103010.0,103000.0,0.03472445]
[1763030034310,0.52180665,103010.0,103000.0,0.003]
[1763030034514,0.52180665,103010.0,103000.0,0.02282445]
[1763030034714,0.52180665,103010.0,103000.0,0.003]
[1763030034919,0.52180665,103010.0,103000.0,0.002]
[1763030035143,0.88911758,103010.0,103000.0,0.002]
[1763030035574,0.19417475,103000.0,102990.0,0.07424445]
[1763030035770,0.54088808,103000.0,102990.0,0.05442]
[1763030036081,0.49268369,103000.0,102990.0,0.08976445]
[1763030036277,0.52182879,103000.0,102990.0,0.08976445]
[1763030036451,0.52182879,103000.0,102990.0,0.09098647]
[1763030036899,0.52182879,103000.0,102990.0,0.30993008]
[1763030037102,0.52182879,103000.0,102990.0,0.11673647]
[1763030037562,0.52182879,103000.0,102990.0,0.11873647]
[1763030038426,0.52182879,103000.0,102990.0,0.31293008]
[1763030038633,0.52182879,103000.0,102990.0,0.11873647]
[1763030039036,0.52182879,103000.0,102990.0,0.31293008]
[1763030039176,0.22331985,103000.0,102990.0,0.11873647]
[1763030040073,0.27152424,103000.0,102990.0,0.11873647]
[1763030041088,0.22331985,103000.0,102990.0,0.31293008]
[1763030041750,0.0291451,103000.0,102990.0,0.59161457]
[1763030041922,0.19417475,103000.0,102990.0,0.59161457]
[1763030042120,0.19417475,103000.0,102990.0,0.61143902]
[1763030042331,0.22329798,103010.0,103000.0,0.19417475]
[1763030042695,0.22329798,103010.0,103000.0,0.07163197]
[1763030043351,0.52180692,103010.0,103000.0,0.05180752]
[1763030043564,0.22329798,103010.0,103000.0,0.02845752]
[1763030043774,0.52180692,103010.0,103000.0,0.04928197]
[1763030043979,0.52180692,103010.0,103000.0,0.01376752]
[1763030044229,0.52180692,103010.0,103000.0,0.04409752]
[1763030045046,0.52180692,103010.0,103000.0,0.09511752]
[1763030045615,0.52180692,103010.0,103000.0,0.05549752]
[1763030046290,0.52180692,103010.0,103000.0,0.04409752]
[1763030047066,0.67144962,103010.0,103000.0,0.04409752]
[1763030047693,0.67144962,103010.0,103000.0,0.06392197]
[1763030048049,0.67144962,103010.0,103000.0,0.04409752]
[1763030048475,0.67144962,103010.0,103000.0,0.06392197]
[1763030048877,0.67144962,103010.0,103000.0,0.04409752]
[1763030049079,0.67144962,103010.0,103000.0,0.06392197]
[1763030050233,0.67144962,103010.0,103000.0,0.04409752]
[1763030050485,0.67144962,103010.0,103000.0,0.07083752]
[1763030050713,0.67144962,103010.0,103000.0,0.11494197]
[1763030054057,0.67144962,103010.0,103000.0,0.09066197]
[1763030054314,0.67144962,103010.0,103000.0,0.11494197]
[1763030055074,0.22329798,103010.0,103000.0,0.28929227]
[1763030055303,0.22329798,103010.0,103000.0,0.30911672]
[1763030056661,0.22329798,103010.0,103000.0,0.11494197]
[1763030056809,0.4473738,103010.0,103000.0,0.09511752]
[1763030056998,0.44737356,103010.0,103000.0,0.30911672]
[1763030057421,0.22329774,103010.0,103000.0,0.30911672]
[1763030058566,0.22329774,103010.0,103000.0,0.09311752]
[1763030058780,0.44737356,103010.0,103000.0,0.11294197]
[1763030059961,0.67144938,103010.0,103000.0,0.11294197]
[1763030060384,0.44737356,103010.0,103000.0,0.11294197]
[1763030062361,0.44737356,103010.0,103000.0,0.30711672]
[1763030064536,0.41823172,103010.0,103000.0,0.30711672]
[1763030067005,0.1941559,103010.0,103000.0,0.30711672]
[1763030067210,0.41823172,103010.0,103000.0,0.30711672]
[1763030067406,1.05234189,103020.0,103010.0,0.21398035]
[1763030067673,0.60419025,103020.0,103010.0,0.07084445]
[1763030067871,1.05234189,103020.0,103010.0,0.05102]
[1763030068020,1.05234189,103020.0,103010.0,0.07084445]
[1763030069022,1.05334189,103020.0,103010.0,0.07084445]
[1763030069519,1.05334189,103020.0,103010.0,0.05102]
[1763030069913,1.05334189,103020.0,103010.0,0.07084445]
[1763030070113,1.05334189,103020.0,103010.0,0.04656445]
[1763030071448,1.05334189,103020.0,103010.0,0.07140445]
[1763030073931,0.5954834,103020.0,103010.0,0.2457359]
[1763030074078,0.81955922,103020.0,103010.0,0.26556035]
[1763030074761,0.81955922,103020.0,103010.0,0.07140445]
[1763030075693,0.81955922,103020.0,103010.0,0.07240445]
[1763030076118,0.81855922,103020.0,103010.0,0.07240445]
[1763030076293,0.81855922,103020.0,103010.0,0.26656035]
[1763030076497,0.81855922,103020.0,103010.0,0.07240445]
[1763030076876,0.49555922,103020.0,103010.0,0.26656035]
[1763030077428,0.44735483,103020.0,103010.0,0.26656035]
[1763030077638,0.42794648,103030.0,103020.0,0.19413706]
[1763030077639,0.19416475,103030.0,103020.0,0.19413706]
[1763030077840,0.19416475,103030.0,103020.0,0.11433445]
[1763030078108,0.19416475,103030.0,103020.0,0.09451]
[1763030078365,0.41824057,103030.0,103020.0,0.09451]
[1763030078599,0.41824057,103030.0,103020.0,0.30847151]
[1763030078798,0.41824057,103030.0,103020.0,0.69847151]
[1763030078799,0.19416475,103030.0,103020.0,0.69847151]
[1763030080404,0.19516475,103030.0,103020.0,0.69847151]
[1763030080614,0.00104654,103030.0,103020.0,0.92254733]
[1763030080767,4.654e-05,103030.0,103020.0,0.92254733]
[1763030081469,0.19416475,103030.0,103020.0,0.92254733]
[1763030081580,4.654e-05,103030.0,103020.0,0.92254733]
[1763030082873,4.654e-05,103030.0,103020.0,1.14762315]
[1763030083969,4.654e-05,103030.0,103020.0,1.14662315]
[1763030084724,4.654e-05,103030.0,103020.0,0.69847151]
[1763030084933,4.654e-05,103030.0,103020.0,1.14662315]
[1763030086269,4.654e-05,103030.0,103020.0,1.14862315]
[1763030086499,4.654e-05,103030.0,103020.0,1.71929326]
[1763030086721,4.654e-05,103030.0,103020.0,2.41134517]
[1763030088074,4.654e-05,103030.0,103020.0,2.39152072]
[1763030088322,4.654e-05,103030.0,103020.0,2.4296591]
[1763030089003,4.654e-05,103030.0,103020.0,2.4316591]
[1763030089958,4.654e-05,103030.0,103020.0,4.46124683]
[1763030090166,4.654e-05,103030.0,103020.0,4.46878367]
[1763030091030,0.00162918,103050.0,103040.0,0.25734256]
[1763030091221,0.00162918,103050.0,103040.0,1.04744441]
[1763030091459,0.00162918,103050.0,103040.0,1.07228441]
[1763030091787,0.00162918,103050.0,103040.0,1.39528441]
[1763030092010,0.20380605,103100.0,103070.0,0.19404288]
[1763030092429,0.45713558,103100.0,103090.0,0.02755]
[1763030092627,0.78013558,103100.0,103090.0,0.02755]
[1763030092831,0.45713558,103100.0,103090.0,0.05239]
[1763030093026,0.45713558,103100.0,103090.0,0.07221445]
[1763030093238,0.23305976,103100.0,103090.0,0.07221445]
[1763030093439,0.23305976,103100.0,103090.0,0.26621968]
[1763030093671,0.72941579,103100.0,103090.0,0.07221445]
[1763030093897,0.19400523,103090.0,103080.0,0.0363]
[1763030094118,0.19402405,103080.0,103070.0,0.03128445]
[1763030094325,0.64217569,103080.0,103070.0,0.05612445]
[1763030094536,0.64217569,103080.0,103070.0,0.11433445]
[1763030094757,0.19402405,103080.0,103070.0,0.11433445]
[1763030094980,0.64217569,103080.0,103070.0,0.02755]
[1763030095215,0.64217569,103080.0,103070.0,0.08949445]
[1763030095419,0.64217569,103080.0,103070.0,0.06967]
[1763030095653,0.64217569,103080.0,103070.0,0.08949445]
[1763030095847,0.64217569,103080.0,103070.0,0.06967]
[1763030096261,0.67129894,103080.0,103070.0,0.06967]
[1763030096473,0.67129894,103080.0,103070.0,0.02755]
[1763030096679,0.89537476,103080.0,103070.0,0.01246]
[1763030096903,0.89537476,103080.0,103070.0,0.05458]
[1763030097259,0.89537476,103080.0,103070.0,0.05358]
[1763030097462,0.89537476,103080.0,103070.0,0.01146]
[1763030097718,0.19406171,103060.0,103050.0,0.0363]
[1763030097924,0.64221335,103060.0,103050.0,0.09824445]
[1763030098123,0.64221335,103060.0,103050.0,0.11433445]
[1763030098330,0.64221335,103060.0,103050.0,0.09451]
[1763030098529,0.64221335,103060.0,103050.0,0.11433445]
[1763030098729,0.64221335,103060.0,103050.0,0.05239]
[1763030098939,0.64221335,103060.0,103050.0,0.11433445]
[1763030099977,0.64221335,103060.0,103050.0,0.50433445]
[1763030100443,0.64221335,103060.0,103050.0,0.48551]
[1763030100697,0.19406171,103060.0,103050.0,0.70041499]
[1763030100895,0.41813753,103060.0,103050.0,0.48651]
[1763030101105,0.41813753,103060.0,103050.0,0.50633445]
[1763030101550,0.41813753,103060.0,103050.0,0.48651]
[1763030101758,0.19406171,103060.0,103050.0,0.70041499]
[1763030101968,0.4181187,103070.0,103060.0,0.01982445]
[1763030102181,0.19404288,103070.0,103060.0,0.26469616]
[1763030102390,0.19404288,103070.0,103060.0,0.30681616]
[1763030102824,0.19404288,103070.0,103060.0,0.09293]
[1763030103220,0.19404288,103070.0,103060.0,0.30681616]
[1763030103358,0.49542915,103080.0,103070.0,0.19404288]
[1763030103570,0.26044284,103080.0,103070.0,0.05081]
[1763030103815,0.26044284,103080.0,103070.0,0.07063445]
[1763030104118,0.24310065,103080.0,103070.0,0.07063445]
[1763030104318,0.26117895,103080.0,103070.0,0.07063445]
[1763030104523,0.26117895,103080.0,103070.0,0.26467733]
[1763030104524,0.21297456,103080.0,103070.0,0.26467733]
[1763030104723,0.19489626,103080.0,103070.0,0.26467733]
[1763030105317,0.21397961,103080.0,103070.0,0.26467733]
[1763030105550,0.21297961,103080.0,103070.0,0.05081]
[1763030105752,0.70933564,103080.0,103070.0,0.0273]
[1763030105970,0.93341146,103080.0,103070.0,0.02082445]
[1763030106200,0.93341146,103080.0,103070.0,0.04308]
[1763030106384,1.28553486,103080.0,103070.0,0.001]
[1763030106781,1.3336653,103080.0,103070.0,0.001]
[1763030106986,1.25835522,103080.0,103070.0,0.001]
[1763030107187,1.25835522,103080.0,103070.0,0.04308]
[1763030107951,1.25935522,103080.0,103070.0,0.001]
[1763030108580,1.26840902,103080.0,103070.0,0.001]
[1763030109353,1.26840902,103080.0,103060.0,0.07381445]
[1763030109559,0.19404288,103070.0,103060.0,0.05399]
[1763030109812,0.51107329,103070.0,103060.0,0.07381445]
[1763030110016,0.51107329,103070.0,103060.0,0.09008445]
[1763030110592,0.51107329,103070.0,103060.0,0.05399]
[1763030111593,0.51107329,103070.0,103060.0,0.07381445]
[1763030112176,0.51107329,103070.0,103060.0,0.04208]
[1763030112617,0.2126146,103070.0,103060.0,0.04208]
[1763030112856,0.51107329,103070.0,103060.0,0.04208]
[1763030113094,0.19406171,103060.0,103050.0,0.44434445]
[1763030113283,0.51060375,103060.0,103050.0,0.4666]
[1763030113402,0.51084796,103060.0,103050.0,0.48287]
[1763030113604,0.51084796,103060.0,103050.0,0.50269445]
[1763030113846,0.21238927,103060.0,103050.0,0.50269445]
[1763030114647,0.21238927,103060.0,103050.0,0.50369445]
[1763030115092,0.21238927,103060.0,103050.0,0.50469445]
[1763030115483,0.51084796,103060.0,103050.0,0.50469445]
[1763030115779,0.51084796,103060.0,103050.0,0.48487]
[1763030116008,0.51084796,103060.0,103050.0,0.50469445]
[1763030116408,0.51084796,103060.0,103050.0,0.48487]
[1763030116597,0.51084796,103060.0,103050.0,0.50469445]
[1763030116804,0.51084796,103060.0,103050.0,0.40346]
[1763030117003,1.18051104,103060.0,103050.0,0.392]
[1763030117224,1.18958738,103060.0,103050.0,0.43408]
[1763030117433,1.21871801,103060.0,103050.0,0.392]
[1763030118095,1.21871801,103060.0,103050.0,0.391]
[1763030118537,1.21971801,103060.0,103050.0,0.39]
[1763030118694,1.31611749,103060.0,103050.0,0.39]
[1763030119569,1.31711749,103060.0,103050.0,0.39]
[1763030120331,0.19411821,103030.0,103020.0,0.01191]
[1763030120549,0.19413706,103020.0,103010.0,0.05479445]
[1763030120746,0.19413706,103020.0,103010.0,0.09687445]
[1763030120939,0.19413706,103020.0,103010.0,0.11314445]
[1763030121453,0.19413706,103020.0,103010.0,0.11361086]
[1763030121654,0.19413706,103020.0,103010.0,0.09378641]
[1763030121855,0.19413706,103020.0,103010.0,0.30776676]
[1763030122098,0.52171418,103030.0,103020.0,0.19413706]
[1763030122253,0.19411821,103030.0,103020.0,0.05224]
[1763030122742,0.19411821,103030.0,103020.0,0.07206445]
[1763030122946,0.19411821,103030.0,103020.0,0.26520151]
[1763030123146,0.19411821,103030.0,103020.0,0.24537706]
[1763030123355,0.55595732,103040.0,103030.0,0.01982445]
[1763030123550,0.92074817,103040.0,103030.0,0.04800445]
[1763030123970,0.92074817,103040.0,103030.0,0.07106445]
[1763030124386,0.92074817,103040.0,103030.0,0.05124]
[1763030124680,0.92074817,103040.0,103030.0,0.02818]
[1763030124882,1.04884666,103040.0,103030.0,0.02818]
[1763030125107,1.04884666,103040.0,103030.0,0.04800445]
[1763030125636,1.04884666,103040.0,103030.0,0.26518266]
[1763030125854,0.62228948,103040.0,103030.0,0.26518266]
[1763030126062,0.61258452,103040.0,103030.0,0.26518266]
[1763030126295,0.61258452,103040.0,103030.0,0.07106445]
[1763030126513,0.61258452,103040.0,103030.0,0.26518266]
[1763030126731,0.87287505,103050.0,103030.0,0.24535821]
[1763030126950,0.49357726,103050.0,103040.0,0.09336]
[1763030127166,0.49357726,103050.0,103040.0,0.11318445]
[1763030127375,0.49357726,103050.0,103040.0,0.09336]
[1763030127590,0.49357726,103050.0,103040.0,0.11318445]
[1763030127831,0.92013444,103050.0,103040.0,0.09336]
[1763030128020,0.92013444,103050.0,103040.0,0.11318445]
[1763030128225,0.49357726,103050.0,103040.0,0.11318445]
[1763030129408,0.47545094,103050.0,103040.0,0.11318445]
[1763030129793,0.47545094,103050.0,103040.0,0.30728382]
[1763030129996,0.19408054,103050.0,103040.0,0.30728382]
[1763030130203,0.19408054,103050.0,103040.0,0.11318445]
[1763030131041,0.19408054,103050.0,103040.0,0.09336]
[1763030131551,0.19408054,103050.0,103040.0,0.11318445]
[1763030131757,0.19408054,103050.0,103040.0,0.09336]
[1763030132339,0.19408054,103050.0,103040.0,0.11318445]
[1763030132541,0.19408054,103050.0,103040.0,0.30728382]
[1763030132746,0.22343565,103060.0,103050.0,0.19408054]
[1763030132928,0.27164004,103060.0,103050.0,0.26587499]
[1763030133127,0.00024421,103060.0,103050.0,0.26587499]
[1763030133327,0.24251031,103060.0,103050.0,0.26587499]
[1763030133915,0.24255687,103060.0,103050.0,0.05197]
[1763030134120,0.19535248,103060.0,103050.0,0.24605054]
[1763030134339,0.19535248,103060.0,103050.0,0.26587499]
[1763030135398,0.19635248,103060.0,103050.0,0.26587499]
[1763030135574,0.00029077,103060.0,103050.0,0.24605054]
[1763030135783,0.19435248,103060.0,103050.0,0.26587499]
[1763030136188,0.00029077,103060.0,103050.0,0.69243217]
[1763030136589,0.00029077,103060.0,103050.0,0.73585091]
[1763030137184,0.00029077,103060.0,103050.0,1.12585091]
[1763030138633,0.00029077,103060.0,103050.0,1.12785091]
[1763030139390,0.00029077,103060.0,103050.0,1.12985091]
[1763030141841,0.00029077,103060.0,103050.0,0.68346928]
[1763030142090,0.00029077,103060.0,103050.0,0.70329373]
[1763030144353,0.00029077,103060.0,103050.0,0.74537373]
[1763030145014,0.00029077,103060.0,103050.0,1.17193091]
[1763030152928,0.00029077,103060.0,103050.0,1.15210646]
[1763030153154,0.00029077,103060.0,103050.0,1.17193091]
[1763030155364,0.00029077,103060.0,103050.0,1.15210646]
[1763030155701,0.00029077,103060.0,103050.0,1.17193091]
[1763030156392,0.00029077,103060.0,103050.0,1.15210646]
[1763030156598,0.00029077,103060.0,103050.0,1.17193091]
[1763030157592,0.00029077,103060.0,103050.0,1.15210646]
[1763030157859,0.00029077,103060.0,103050.0,1.20151864]
[1763030158247,0.00029077,103060.0,103050.0,1.17193091]
[1763030158809,0.00029077,103060.0,103050.0,1.49493091]
[1763030159010,0.00029077,103060.0,103050.0,1.5269353]
[1763030161836,0.2425,103090.0,103080.0,0.2138485]
[1763030162043,0.24254656,103090.0,103080.0,0.2830685]
[1763030162251,0.24254656,103090.0,103080.0,0.3068785]
[1763030162856,0.24254656,103090.0,103080.0,0.33888289]
[1763030162857,0.43655179,103090.0,103080.0,0.33888289]
[1763030163271,0.24254656,103090.0,103080.0,0.33888289]
[1763030164399,0.24254656,103090.0,103080.0,0.72888289]
[1763030164596,0.24254656,103090.0,103080.0,0.33888289]
[1763030167342,4.656e-05,103090.0,103080.0,0.68053374]
[1763030167685,0.00077893,103090.0,103080.0,0.68053374]
[1763030168459,0.00077893,103090.0,103080.0,0.68253374]
[1763030168997,0.00077893,103090.0,103080.0,0.83159217]
[1763030169649,0.00077893,103090.0,103080.0,0.81176772]
[1763030169853,0.00077893,103090.0,103080.0,1.22159217]
[1763030170054,0.00077893,103090.0,103080.0,1.76823744]
[1763030170327,0.00077893,103090.0,103080.0,1.54459217]
[1763030170539,0.00077893,103090.0,103080.0,1.76823744]
[1763030171590,0.0002,103120.0,103110.0,0.1939676]
[1763030171790,0.0002,103120.0,103110.0,0.26484205]
[1763030171979,0.0002,103120.0,103110.0,0.29684644]
[1763030173249,0.0002,103120.0,103110.0,0.52049171]
[1763030173454,0.0002,103120.0,103110.0,0.29684644]
[1763030174062,0.0002,103120.0,103110.0,0.52049171]
[1763030174702,0.0002,103120.0,103110.0,0.80049171]
[1763030175109,0.0002,103120.0,103110.0,0.84098434]
[1763030175314,0.0002,103120.0,103110.0,0.81190606]
[1763030175515,0.0002,103120.0,103110.0,0.58826079]
[1763030175845,0.0002,103120.0,103110.0,0.81190606]
[1763030177339,0.00093206,103120.0,103110.0,0.81190606]
[1763030178029,0.00093206,103120.0,103110.0,1.05780688]
[1763030178225,0.00093206,103120.0,103110.0,1.07763133]
[1763030179366,0.19488085,103120.0,103110.0,0.63034079]
[1763030179567,0.19488085,103120.0,103110.0,0.37313]
[1763030179802,0.19488085,103120.0,103110.0,0.39295445]
[1763030179803,0.41852612,103120.0,103110.0,0.39295445]
[1763030180012,0.41852612,103120.0,103110.0,0.37313]
[1763030180219,0.64217139,103120.0,103110.0,0.33105]
[1763030180428,0.21296418,103120.0,103110.0,0.33105]
[1763030180631,0.66025472,103120.0,103110.0,0.35024]
[1763030180833,0.93210438,103120.0,103110.0,0.33374]
[1763030181093,0.93210438,103120.0,103110.0,0.35356445]
[1763030181303,0.93210438,103120.0,103110.0,0.33374]
[1763030181507,0.93210438,103120.0,103110.0,0.35024]
[1763030181716,0.70845911,103120.0,103110.0,0.37313]
[1763030181929,0.01901539,103120.0,103110.0,0.58692205]
[1763030182134,0.21396418,103120.0,103110.0,0.5670976]
[1763030182338,0.21396418,103120.0,103110.0,0.58692205]
[1763030182542,0.02001539,103120.0,103110.0,0.58692205]
[1763030182876,0.00193206,103120.0,103110.0,0.58692205]
[1763030183526,0.00093206,103120.0,103110.0,0.58692205]
[1763030184500,0.19488085,103120.0,103110.0,0.58692205]
[1763030184703,0.00093206,103120.0,103110.0,0.58692205]
[1763030185353,0.19488085,103120.0,103110.0,0.5670976]
[1763030185832,0.00093206,103120.0,103110.0,0.58692205]
[1763030186945,0.00093206,103120.0,103110.0,0.91276379]
[1763030187304,0.00093206,103120.0,103110.0,0.93258824]
[1763030192408,0.00093206,103120.0,103110.0,0.57322199]
[1763030192613,0.19488085,103120.0,103110.0,0.37313]
[1763030193019,0.19488085,103120.0,103110.0,0.39295445]
[1763030193868,0.19488085,103120.0,103110.0,0.58692205]
[1763030194276,0.19488085,103120.0,103110.0,0.39295445]
[1763030194436,0.44892391,103120.0,103110.0,0.39295445]
[1763030194634,0.44892391,103120.0,103110.0,0.33105]
[1763030194837,0.44892391,103120.0,103110.0,0.33374]
[1763030195060,0.72109379,103120.0,103110.0,0.32208]
[1763030195341,0.72109379,103120.0,103110.0,0.34190445]
[1763030195552,0.72109379,103120.0,103110.0,0.32208]
[1763030196490,0.72109379,103120.0,103110.0,0.34190445]
[1763030196666,0.72209379,103120.0,103110.0,0.34190445]
[1763030197483,0.72209379,103120.0,103110.0,0.32208]
[1763030197860,0.72209379,103120.0,103110.0,0.06190445]
[1763030198065,0.72209379,103120.0,103110.0,0.04208]
[1763030198474,0.72209379,103120.0,103110.0,0.06190445]
[1763030198654,0.72209379,103120.0,103110.0,0.04208]
[1763030199024,0.46805073,103120.0,103110.0,0.08181]
[1763030199225,0.46805073,103120.0,103110.0,0.10163445]
[1763030200097,0.21400767,103120.0,103110.0,0.29560205]
[1763030200305,0.50471206,103120.0,103110.0,0.29560205]
[1763030201549,0.45650767,103120.0,103110.0,0.2757776]
[1763030201753,0.45650767,103120.0,103110.0,0.08181]
[1763030201944,0.45650767,103120.0,103110.0,0.10163445]
[1763030202446,0.43838085,103120.0,103110.0,0.10163445]
[1763030202856,0.43838085,103120.0,103110.0,0.29560205]
[1763030203001,0.43838085,103120.0,103110.0,0.10163445]
[1763030203213,0.69242391,103120.0,103110.0,0.08181]
[1763030203921,0.69242391,103120.0,103110.0,0.10163445]
[1763030204128,0.69242391,103120.0,103110.0,0.29560205]
[1763030204430,0.69242391,103120.0,103110.0,0.30707205]
[1763030205163,0.43838085,103120.0,103110.0,0.2872476]
[1763030205367,0.43838085,103120.0,103110.0,0.30707205]
[1763030205368,0.49847512,103120.0,103110.0,0.30707205]
[1763030205572,0.43838085,103120.0,103110.0,0.30707205]
[1763030205784,0.43838085,103120.0,103110.0,0.09328]
[1763030205992,0.69242391,103120.0,103110.0,0.30707205]
[1763030206198,0.69242391,103120.0,103110.0,0.09328]
[1763030206439,0.43838085,103120.0,103110.0,0.11310445]
[1763030206656,0.69242391,103120.0,103110.0,0.09328]
[1763030207485,0.69242391,103120.0,103110.0,0.11310445]
[1763030210553,0.69242391,103120.0,103110.0,0.09328]
[1763030210766,0.69242391,103120.0,103110.0,0.11310445]
[1763030210979,0.88557609,103120.0,103110.0,0.11310445]
[1763030211607,0.88557609,103120.0,103110.0,0.30707205]
[1763030211813,0.88557609,103120.0,103110.0,0.2872476]
[1763030211994,0.88557609,103120.0,103110.0,0.11310445]
[1763030212199,0.88557609,103120.0,103110.0,0.30707205]
[1763030213693,0.6916273,103120.0,103110.0,0.30707205]
[1763030214357,0.88557609,103120.0,103110.0,0.30703205]
[1763030215483,0.88557609,103120.0,103110.0,0.11306445]
[1763030215687,0.88557609,103120.0,103110.0,0.09324]
[1763030217082,0.88557609,103120.0,103110.0,0.11306445]
[1763030218791,0.88557609,103120.0,103110.0,0.05116]
[1763030218984,0.1939676,103110.0,103100.0,0.01166]
[1763030219247,0.1939676,103110.0,103100.0,0.09748445]
[1763030219460,0.68936723,103110.0,103100.0,0.09347]
[1763030219662,0.68936723,103110.0,103100.0,0.11329445]
[1763030220077,0.64116284,103110.0,103100.0,0.11329445]
[1763030220496,0.64116284,103110.0,103100.0,0.30728087]
[1763030222086,0.93204842,103120.0,103100.0,0.30728087]
[1763030222291,0.22359762,103110.0,103100.0,0.26755087]
[1763030222489,0.22359762,103110.0,103100.0,0.28297087]
[1763030222645,0.88384403,103120.0,103110.0,0.21379205]
[1763030222848,0.88384403,103120.0,103110.0,0.26468205]
[1763030223664,0.88384403,103120.0,103110.0,0.07071445]
[1763030224312,0.1939676,103110.0,103100.0,0.01166]
[1763030224526,0.19398642,103100.0,103090.0,0.03471]
[1763030224735,0.64118166,103100.0,103090.0,0.07679]
[1763030224936,0.64118166,103100.0,103090.0,0.09202]
[1763030225623,0.64118166,103100.0,103090.0,0.11184445]
[1763030225825,0.64118166,103100.0,103090.0,0.02689]
[1763030226027,0.86477928,103100.0,103090.0,0.05374]
[1763030226173,0.86477928,103100.0,103090.0,0.05474]
[1763030226534,0.64118166,103100.0,103090.0,0.07456445]
[1763030226741,0.86477928,103100.0,103090.0,0.07456445]
[1763030226958,0.64118166,103100.0,103090.0,0.11317445]
[1763030227609,0.64118166,103100.0,103090.0,0.09235]
[1763030228024,0.64218166,103100.0,103090.0,0.09235]
[1763030228440,0.64218166,103100.0,103090.0,0.11217445]
[1763030228984,0.64218166,103100.0,103090.0,0.03148445]
[1763030228985,1.10827928,103100.0,103090.0,0.03148445]
[1763030229200,1.10827928,103100.0,103090.0,0.07356445]
[1763030229378,1.10827928,103100.0,103090.0,0.05374]
[1763030229607,0.88468166,103100.0,103090.0,0.08879445]
[1763030229805,1.10827928,103100.0,103090.0,0.06897]
[1763030230050,1.10852333,103100.0,103090.0,0.06897]
[1763030230454,1.10852333,103100.0,103090.0,0.05374]
[1763030230672,1.2531272,103100.0,103090.0,0.04208]
[1763030231117,1.2531272,103100.0,103070.0,0.05562445]
[1763030231118,0.19402405,103080.0,103070.0,0.0358]
[1763030231326,0.49235708,103080.0,103070.0,0.07437101]
[1763030231531,0.49235708,103080.0,103070.0,0.09315656]
[1763030231737,0.49235708,103080.0,103070.0,0.11298101]
[1763030232561,0.49235708,103080.0,103070.0,0.09415656]
[1763030232769,0.49235708,103080.0,103070.0,0.11398101]
[1763030232944,0.49235708,103080.0,103070.0,0.09515656]
[1763030233363,0.49235708,103080.0,103070.0,0.11498101]
[1763030233516,0.49235708,103080.0,103070.0,0.11398101]
[1763030233721,0.49235708,103080.0,103070.0,0.11298101]
[1763030234364,0.49235708,103080.0,103070.0,0.09315656]
[1763030234546,0.49235708,103080.0,103070.0,0.11298101]
[1763030234754,0.49235708,103080.0,103070.0,0.30702389]
[1763030234953,0.49235708,103080.0,103070.0,0.09315656]
[1763030235359,0.49235708,103080.0,103070.0,0.11298101]
[1763030236524,0.49235708,103080.0,103070.0,0.30702389]
[1763030237101,0.49235708,103080.0,103070.0,0.09315656]
[1763030237303,0.49235708,103080.0,103070.0,0.02769656]
[1763030237505,0.85254224,103080.0,103070.0,4.656e-05]
[1763030237724,0.85254224,103080.0,103070.0,0.04212656]
[1763030238842,0.85254224,103080.0,103070.0,0.06195101]
[1763030239045,0.85254224,103080.0,103070.0,0.04212656]
[1763030240232,0.85254224,103080.0,103070.0,0.06195101]
[1763030241628,0.85254224,103080.0,103070.0,0.04212656]
[1763030242162,0.85254224,103080.0,103070.0,0.06195101]
[1763030242561,0.85254224,103080.0,103070.0,0.04212656]
[1763030242768,0.85254224,103080.0,103070.0,0.06195101]
[1763030243021,0.85254224,103080.0,103070.0,0.04212656]
[1763030244566,1.17554224,103080.0,103070.0,0.04212656]
[1763030245009,1.17554224,103080.0,103070.0,0.06195101]
[1763030245621,1.20466702,103080.0,103070.0,0.06195101]
[1763030247096,1.20466702,103080.0,103070.0,0.04212656]
[1763030247494,1.20466702,103080.0,103070.0,0.06195101]
[1763030248643,1.20466702,103080.0,103070.0,0.07335101]
[1763030249306,0.19408054,103050.0,103040.0,0.01302871]
[1763030249511,0.7907466,103050.0,103040.0,0.00167527]
[1763030249718,1.1137466,103050.0,103040.0,0.00167527]
[1763030249925,1.13187542,103050.0,103040.0,0.00167527]
[1763030250157,1.16101103,103050.0,103040.0,0.00167527]
[1763030250368,1.63909348,103050.0,103040.0,1e-08]
[1763030250756,1.64009348,103050.0,103040.0,1e-08]
[1763030250959,1.6652355,103050.0,103040.0,1e-08]
[1763030251399,1.71245308,103050.0,103040.0,1e-08]
[1763030251955,1.71345308,103050.0,103040.0,1e-08]
[1763030252364,1.71245308,103050.0,103040.0,1e-08]
[1763030252570,1.64009348,103050.0,103040.0,1e-08]
[1763030252770,1.6672355,103050.0,103040.0,1e-08]
[1763030252982,1.62595059,103050.0,103040.0,1e-08]
[1763030253147,1.63595058,103050.0,103040.0,1e-08]
[1763030253351,1.63577045,103050.0,103040.0,1e-08]
[1763030253986,1.70858121,103050.0,103040.0,1e-08]
[1763030256315,0.85486703,103050.0,103040.0,1e-08]
[1763030256588,1.70858121,103050.0,103040.0,1e-08]
[1763030258509,1.74358525,103050.0,103040.0,1e-08]
[1763030258665,1.74358525,103050.0,102990.0,0.0004]
[1763030258866,1.74358525,103050.0,102990.0,0.00086641]
[1763030258867,1.41909332,103000.0,102990.0,0.00086641]
[1763030259069,1.57578162,103000.0,102990.0,0.00086641]
[1763030259492,1.60493102,103000.0,102990.0,0.00086641]
[1763030260055,1.60593102,103000.0,102990.0,0.00086641]
[1763030261611,1.61493648,103000.0,102990.0,0.00086641]
[1763030261825,1.518537,103000.0,102990.0,0.00086641]
[1763030263519,1.08267445,103000.0,102990.0,0.00086641]
[1763030263857,1.04051445,103000.0,102990.0,0.00086641]
[1763030265054,1.04051445,103000.0,102990.0,0.00208841]
[1763030265966,1.46737154,103000.0,102990.0,0.00208841]
[1763030266166,1.56377102,103000.0,102990.0,0.00208841]
[1763030266590,1.13691393,103000.0,102990.0,0.00208841]
[1763030268573,1.56377102,103000.0,102990.0,0.00208841]
[1763030269217,1.13691393,103000.0,102990.0,0.00208841]
[1763030270540,1.56377102,103000.0,102990.0,0.00208841]
[1763030271040,1.58233405,103000.0,102990.0,0.00208841]
[1763030271275,1.58233405,103000.0,102990.0,1e-08]
[1763030271510,1.62575279,103000.0,102990.0,1e-08]
[1763030271741,1.61674781,103000.0,102990.0,1e-08]
[1763030271989,1.62575602,103000.0,102990.0,1e-08]
[1763030272211,1.62475602,103000.0,102990.0,1e-08]
[1763030273340,1.64552365,103000.0,102990.0,1e-08]
[1763030276429,1.68154316,103000.0,102990.0,1e-08]
[1763030277336,0.51719361,102990.0,102980.0,0.0004]
[1763030277547,1.13051484,102990.0,102980.0,0.00053983]
[1763030278003,1.1344021,102990.0,102980.0,0.00078432]
[1763030278408,1.1344021,102990.0,102980.0,1e-08]
[1763030278625,1.1344021,102990.0,102960.0,1e-08]
[1763030278626,0.51723132,102970.0,102960.0,1e-08]